bitfinex/quotes_BTCUSD_20251221
["timestamp","ask_amount","ask_price","bid_price","bid_amount"]
[1766287104301,0.00229,88183.0,88177.0,0.16331082]
[1766287104640,0.00229,88183.0,88177.0,0.15197]
[1766287104869,0.00229,88183.0,88177.0,0.16331082]
[1766287105069,0.04928929,88187.0,88178.0,0.05670312]
[1766287105230,0.00568,88189.0,88181.0,0.01134031]
[1766287105430,0.00568,88189.0,88183.0,0.01134005]
[1766287105632,0.00568,88189.0,88184.0,0.01133992]
[1766287106549,0.00568,88189.0,88183.0,0.01134005]
[1766287106772,0.00568,88194.0,88184.0,0.01133992]
[1766287107253,0.00568,88194.0,88186.0,0.01133966]
[1766287107450,0.00568,88194.0,88184.0,0.01133992]
[1766287107763,0.00568,88194.0,88185.0,0.01133979]
[1766287107966,0.12492,88198.0,88186.0,0.02494726]
[1766287108214,0.12492,88198.0,88187.0,0.01133953]
[1766287108419,0.12492,88198.0,88186.0,0.01133966]
[1766287109343,0.000549,88186.0,88184.0,0.01133992]
[1766287109740,0.36215,88198.0,88185.0,0.01133979]
[1766287110327,0.36215,88198.0,88186.0,0.01133966]
[1766287110725,0.36215,88198.0,88185.0,0.01133979]
[1766287111558,0.00568,88201.0,88187.0,0.01133953]
[1766287111791,0.00568,88201.0,88189.0,0.01133928]
[1766287112249,0.00568,88201.0,88190.0,0.01133915]
[1766287112782,0.00568,88201.0,88195.0,0.01133851]
[1766287113012,0.12492,88206.0,88197.0,0.01133825]
[1766287113336,0.00568,88210.0,88198.0,0.01133812]
[1766287113749,0.03065015,88244.0,88229.0,0.05667049]
[1766287113958,0.03065015,88244.0,88209.0,0.08181028]
[1766287113959,0.23723,88256.0,88241.0,0.0113326]
[1766287114171,0.12492,88259.0,88242.0,0.01701247]
[1766287114393,0.12492,88259.0,88243.0,0.01133234]
[1766287114394,0.01133838,88258.0,88243.0,0.01133234]
[1766287114598,0.01133838,88258.0,88246.0,0.01133195]
[1766287114819,0.12492,88259.0,88242.0,0.01701337]
[1766287115020,0.12492,88259.0,88244.0,0.01133221]
[1766287115225,0.12492,88259.0,88246.0,0.06799157]
[1766287115430,0.12492,88259.0,88253.0,0.01133105]
[1766287115643,0.01132862,88272.0,88252.0,0.01133118]
[1766287115644,0.13061,88274.0,88256.0,0.01133067]
[1766287115843,0.13061,88274.0,88252.0,0.05665542]
[1766287115844,0.00055,88256.0,88253.0,0.01133105]
[1766287116052,0.12319657,88260.0,88257.0,0.00568]
[1766287116262,0.10278876,88260.0,88257.0,0.00568]
[1766287116396,0.10278876,88260.0,88258.0,0.00568]
[1766287116609,0.10278876,88260.0,88258.0,0.004581]
[1766287117014,0.10278876,88260.0,88259.0,0.00568]
[1766287118049,0.01133016,88260.0,88240.0,0.4103768]
[1766287118217,0.24443,88259.0,88245.0,0.01133208]
[1766287118398,0.24443,88259.0,88250.0,0.01133144]
[1766287118608,0.37504,88266.0,88255.0,0.0113308]
[1766287118833,0.13061,88265.0,88259.0,0.000549]
[1766287119058,0.13061,88265.0,88260.0,0.00568]
[1766287120127,0.37504,88265.0,88260.0,0.00568]
[1766287120330,0.13061,88264.0,88260.0,0.00568]
[1766287120538,0.00135936,88261.0,88260.0,0.00568]
[1766287120756,0.00135936,88261.0,88259.0,0.00568]
[1766287120965,0.13061,88264.0,88259.0,0.00568]
[1766287121191,0.13061,88263.0,88259.0,0.00568]
[1766287122688,0.24443,88262.0,88259.0,0.00568]
[1766287122910,0.37504,88262.0,88259.0,0.00568]
[1766287125276,0.24443,88262.0,88259.0,0.00568]
[1766287125477,0.13061,88261.0,88259.0,0.00568]
[1766287126093,0.00132848,88260.0,88259.0,0.00568]
[1766287129339,0.00132848,88260.0,88233.0,0.01133362]
[1766287129560,0.24443,88253.0,88243.0,0.03405362]
[1766287129779,0.03405362,88264.0,88253.0,0.001099]
[1766287129981,0.13061,88266.0,88253.0,0.001099]
[1766287130195,0.24443,88268.0,88252.0,0.01133118]
[1766287130196,0.01133157,88268.0,88252.0,0.01133118]
[1766287130401,0.13061,88266.0,88256.0,0.08181028]
[1766287130988,0.130061,88266.0,88256.0,0.08181028]
[1766287131184,0.130061,88266.0,88256.0,0.09314095]
[1766287131647,0.24443,88274.0,88258.0,0.01133041]
[1766287131821,0.01132874,88271.0,88257.0,0.00568]
[1766287132061,0.2561179,88271.0,88257.0,0.00568]
[1766287132264,0.01132887,88270.0,88257.0,0.00568]
[1766287132458,0.2561179,88271.0,88257.0,0.00568]
[1766287132763,0.011329,88269.0,88257.0,0.00568]
[1766287132938,0.38636887,88270.0,88256.0,0.08181028]
[1766287133130,0.011329,88269.0,88257.0,0.00568]
[1766287133321,0.37504,88270.0,88257.0,0.00568]
[1766287133322,0.38636887,88270.0,88257.0,0.00568]
[1766287133845,0.06833188,88271.0,88257.0,0.00568]
[1766287133846,0.386369,88269.0,88257.0,0.00568]
[1766287134023,0.000549,88257.0,88248.0,0.01701131]
[1766287134225,0.24443,88254.0,88249.0,0.00568]
[1766287134487,0.13061,88252.0,88250.0,0.00568]
[1766287135273,0.13061,88252.0,88248.0,0.01701131]
[1766287135274,0.000549,88250.0,88248.0,0.01701131]
[1766287135446,0.13061,88249.0,88246.0,0.00568]
[1766287135648,0.13159875,88249.0,88241.0,0.03405261]
[1766287135986,0.13061,88249.0,88244.0,0.00568]
[1766287139120,0.000549,88244.0,88241.0,0.03405261]
[1766287139322,0.000549,88244.0,88242.0,0.00568]
[1766287139548,0.13061,88246.0,88242.0,0.00568]
[1766287140354,0.13096938,88246.0,88243.0,0.00568]
[1766287140556,0.13096938,88246.0,88243.0,0.005131]
[1766287140775,0.13096938,88246.0,88240.0,0.08181028]
[1766287140988,0.13096938,88246.0,88242.0,0.00568]
[1766287141522,0.13096938,88246.0,88234.0,0.01133349]
[1766287141523,0.13061,88244.0,88226.0,0.04536]
[1766287141739,0.31693063,88240.0,88225.0,0.08181028]
[1766287141975,0.01133324,88236.0,88226.0,0.00568]
[1766287142169,0.01133298,88238.0,88226.0,0.00568]
[1766287142170,0.37504,88232.0,88226.0,0.00568]
[1766287142597,0.374491,88232.0,88226.0,0.00568]
[1766287142794,0.374491,88232.0,88226.0,0.01701452]
[1766287142998,0.32261063,88240.0,88227.0,0.01133439]
[1766287143202,0.44754063,88250.0,88240.0,0.00055]
[1766287143401,0.00568,88243.0,88228.0,0.05667135]
[1766287143633,0.13061,88239.0,88226.0,0.00568]
[1766287144178,0.13061,88239.0,88220.0,0.41900024]
[1766287144383,0.24443,88236.0,88227.0,0.08181028]
[1766287144594,0.13061,88231.0,88228.0,0.00568]
[1766287145343,0.24443,88232.0,88228.0,0.00568]
[1766287145780,0.05701923,88246.0,88232.0,0.00055]
[1766287145781,0.25151,88241.0,88232.0,0.00055]
[1766287146001,0.25151,88241.0,88232.0,0.01188375]
[1766287146214,0.25151,88241.0,88231.0,0.01133388]
[1766287146473,0.25151,88241.0,88232.0,0.01133375]
[1766287146727,0.25151,88241.0,88233.0,0.01133362]
[1766287146944,0.37594,88241.0,88233.0,0.01133362]
[1766287148043,0.37594,88241.0,88232.0,0.01133375]
[1766287148454,0.00035938,88246.0,88234.0,0.05666749]
[1766287148623,0.03405818,88249.0,88241.0,0.00055]
[1766287148821,0.03416594,88249.0,88241.0,0.00055]
[1766287149071,0.12443,88248.0,88236.0,0.01133324]
[1766287149279,0.12443,88246.0,88234.0,0.01133349]
[1766287149490,0.12443,88246.0,88235.0,0.01133337]
[1766287149701,0.12443,88246.0,88234.0,0.01133349]
[1766287149910,0.12443,88246.0,88232.0,0.01133375]
[1766287150059,0.12443,88244.0,88232.0,0.01133375]
[1766287150457,0.12443,88244.0,88233.0,0.01701362]
[1766287150742,0.12443,88244.0,88234.0,0.01133349]
[1766287151020,0.12443,88244.0,88233.0,0.01701362]
[1766287151434,0.12443,88244.0,88234.0,0.01133349]
[1766287151578,0.12443,88244.0,88235.0,0.01133337]
[1766287152190,0.12443,88244.0,88234.0,0.01133349]
[1766287152402,0.12443,88244.0,88235.0,0.01133337]
[1766287152600,0.12443,88244.0,88236.0,0.01133324]
[1766287152601,0.12388,88244.0,88236.0,0.01133324]
[1766287152802,0.25151,88245.0,88237.0,0.01133311]
[1766287153145,0.01712138,88249.0,88237.0,0.01133311]
[1766287153364,0.01712138,88249.0,88236.0,0.01133324]
[1766287153776,0.00061804,88237.0,88236.0,0.01133324]
[1766287154722,0.00061804,88237.0,88234.0,0.01133349]
[1766287155022,0.12443,88248.0,88235.0,0.01133337]
[1766287155435,0.12443,88248.0,88236.0,0.01133324]
[1766287155849,0.12443,88248.0,88235.0,0.01133337]
[1766287156265,0.26863138,88249.0,88239.0,0.01133285]
[1766287156497,0.00010776,88249.0,88244.0,0.01133221]
[1766287156698,0.37594,88257.0,88244.0,0.01133221]
[1766287156901,0.00568,88255.0,88244.0,0.00568]
[1766287157564,0.13011,88255.0,88244.0,0.00568]
[1766287157768,0.12443,88254.0,88244.0,0.00568]
[1766287160063,0.38162,88255.0,88244.0,0.00568]
[1766287160389,0.12443,88254.0,88244.0,0.00568]
[1766287160532,0.00086519,88245.0,88244.0,0.00568]
[1766287162335,0.00086519,88245.0,88244.0,0.005131]
[1766287163192,0.00031619,88245.0,88244.0,0.005131]
[1766287167108,0.03405428,88258.0,88255.0,0.0113308]
[1766287167109,4.28e-06,88258.0,88255.0,0.0113308]
[1766287167317,0.12468,88269.0,88253.0,0.01133105]
[1766287167518,0.12474097,88269.0,88254.0,0.01133093]
[1766287167722,0.12468,88268.0,88253.0,0.01133105]
[1766287167934,0.00568,88267.0,88256.0,0.01133067]
[1766287168156,0.00568,88267.0,88255.0,0.09314146]
[1766287168398,0.00568,88267.0,88253.0,0.01133105]
[1766287168399,0.12468,88266.0,88253.0,0.01133105]
[1766287168601,0.12468,88266.0,88256.0,0.03404941]
[1766287169580,0.12468,88265.0,88256.0,0.03404941]
[1766287170855,0.12468,88265.0,88246.0,0.01133195]
[1766287170856,0.25311,88256.0,88238.0,0.05666458]
[1766287171073,0.37779,88250.0,88242.0,0.00568]
[1766287171286,0.37779,88250.0,88243.0,0.00568]
[1766287171287,0.12468,88249.0,88243.0,0.00568]
[1766287171722,0.1168875,88249.0,88243.0,0.00568]
[1766287176520,0.00568,88259.0,88247.0,0.01133182]
[1766287176734,0.0566448,88270.0,88244.0,0.01133221]
[1766287176735,0.00568,88263.0,88244.0,0.01133221]
[1766287176946,0.36719,88259.0,88244.0,0.00568]
[1766287177148,0.24578,88259.0,88244.0,0.00568]
[1766287177381,0.12141,88256.0,88244.0,0.00568]
[1766287177843,0.00024706,88253.0,88244.0,0.00568]
[1766287178596,0.24578,88267.0,88244.0,0.01701221]
[1766287178798,0.01132913,88268.0,88244.0,0.01701221]
[1766287178799,0.00568,88266.0,88255.0,0.08181028]
[1766287179191,0.12141,88265.0,88255.0,0.08181028]
[1766287180644,0.12141,88260.0,88237.0,0.12245518]
[1766287180845,0.12141,88256.0,88238.0,0.00568]
[1766287181047,0.12141,88256.0,88245.0,0.03405122]
[1766287181820,0.12141,88256.0,88246.0,0.00568]
[1766287182033,0.13274067,88256.0,88246.0,0.00568]
[1766287182242,0.24578,88257.0,88246.0,0.00568]
[1766287182432,0.12709,88260.0,88246.0,0.00568]
[1766287182635,0.12141,88258.0,88246.0,0.00568]
[1766287182925,0.24578,88258.0,88246.0,0.00568]
[1766287183086,0.12141,88257.0,88246.0,0.00568]
[1766287184506,0.12141,88257.0,88246.0,0.01701195]
[1766287184661,0.12141,88257.0,88247.0,0.01133182]
[1766287184885,0.24578,88258.0,88249.0,0.01133157]
[1766287185136,0.32262757,88260.0,88249.0,0.01133157]
[1766287185371,0.00568,88260.0,88251.0,0.08181028]
[1766287188368,0.00568,88260.0,88251.0,0.09314159]
[1766287188795,0.00568,88260.0,88251.0,0.14979801]
[1766287188996,0.00568,88260.0,88253.0,0.01133105]
[1766287189201,0.00568,88260.0,88252.0,0.01133118]
[1766287189401,0.00568,88260.0,88251.0,0.09314159]
[1766287189631,0.00568,88260.0,88252.0,0.08181028]
[1766287191019,0.00568,88260.0,88252.0,0.09314146]
[1766287191607,0.00568,88260.0,88253.0,0.01133105]
[1766287191938,0.00568,88262.0,88260.0,0.001099]
[1766287192158,0.00568,88262.0,88254.0,0.01133093]
[1766287192369,0.00568,88262.0,88253.0,0.00568]
[1766287193512,0.00568,88262.0,88253.0,0.01701105]
[1766287193928,0.00568,88262.0,88253.0,0.00568]
[1766287194356,0.00568,88262.0,88253.0,0.01701105]
[1766287195705,0.00568,88262.0,88253.0,0.00568]
[1766287196434,0.00568,88262.0,88253.0,0.01701105]
[1766287196728,0.00568,88262.0,88253.0,0.00568]
[1766287197211,0.00568,88262.0,88253.0,0.01701105]
[1766287197456,0.00568,88262.0,88253.0,0.00568]
[1766287197646,0.00568,88262.0,88253.0,0.01701105]
[1766287197856,0.00568,88262.0,88253.0,0.00568]
[1766287198225,0.00568,88262.0,88253.0,0.01701105]
[1766287198964,0.00568,88262.0,88253.0,0.00568]
[1766287199394,0.00568,88262.0,88254.0,0.01133093]
[1766287200157,0.005131,88262.0,88257.0,0.01133054]
[1766287200366,0.005131,88262.0,88256.0,0.01133067]
[1766287200529,0.005131,88262.0,88255.0,0.0113308]
[1766287200740,0.005131,88262.0,88254.0,0.01133093]
[1766287201244,0.005131,88262.0,88253.0,0.00568]
[1766287201442,0.005131,88262.0,88247.0,0.01133182]
[1766287201443,0.000549,88253.0,88247.0,0.01133182]
[1766287201646,0.000549,88253.0,88249.0,0.01133157]
[1766287201848,0.12141,88260.0,88252.0,0.01133118]
[1766287202063,0.12141,88260.0,88253.0,0.00568]
[1766287202064,0.24578,88260.0,88253.0,0.00568]
[1766287202272,0.12141,88256.0,88247.0,0.01701182]
[1766287202514,0.24578,88257.0,88250.0,0.01133144]
[1766287202718,0.12141,88255.0,88248.0,0.0113317]
[1766287202929,0.12141,88254.0,88249.0,0.01133157]
[1766287203214,0.12141,88260.0,88252.0,0.01133118]
[1766287203389,0.12141,88260.0,88253.0,0.01133105]
[1766287203596,0.005131,88262.0,88260.0,0.00055]
[1766287203792,0.24578,88268.0,88254.0,0.01133093]
[1766287203970,0.00568,88267.0,88259.0,0.01133028]
[1766287204173,0.00568,88267.0,88257.0,0.01133054]
[1766287204399,0.00568,88267.0,88256.0,0.01133067]
[1766287204612,0.00568,88267.0,88258.0,0.01133041]
[1766287204845,0.00568,88267.0,88256.0,0.01133067]
[1766287205352,0.00568,88267.0,88254.0,0.06798541]
[1766287205353,0.00568,88267.0,88254.0,0.01133093]
[1766287205499,0.13132,88267.0,88256.0,0.01133067]
[1766287206877,0.13132,88267.0,88258.0,0.01133041]
[1766287207557,0.13132,88267.0,88256.0,0.06798376]
[1766287207558,0.13132,88267.0,88257.0,0.01133054]
[1766287207976,0.13132,88267.0,88256.0,0.01133067]
[1766287208403,0.000549,88256.0,88252.0,0.01701118]
[1766287208609,0.000549,88256.0,88253.0,0.01133105]
[1766287208833,0.000549,88256.0,88253.0,0.06798633]
[1766287209035,0.12564,88264.0,88255.0,0.0113308]
[1766287209242,0.12564,88264.0,88256.0,0.01133067]
[1766287209863,0.12564,88264.0,88258.0,0.01133041]
[1766287210138,0.12564,88264.0,88257.0,0.01133054]
[1766287210351,0.12564,88264.0,88258.0,0.01133041]
[1766287210978,0.13132,88264.0,88259.0,0.01133028]
[1766287211195,0.13132,88264.0,88258.0,0.01133041]
[1766287211403,0.13132,88264.0,88257.0,0.01133054]
[1766287212035,0.13132,88264.0,88252.0,0.01701118]
[1766287212244,0.13132,88264.0,88255.0,0.0113308]
[1766287214024,0.13132,88264.0,88257.0,0.01133054]
[1766287214224,0.13132,88264.0,88256.0,0.01133067]
[1766287214429,0.13132,88264.0,88257.0,0.01133054]
[1766287214828,0.13132,88264.0,88256.0,0.01133067]
[1766287215041,0.13132,88264.0,88257.0,0.01133054]
[1766287216811,0.13132,88264.0,88256.0,0.01133067]
[1766287217186,0.13132,88264.0,88257.0,0.01133054]
[1766287217649,6.097e-05,88269.0,88261.0,0.01133003]
[1766287217855,0.00568,88266.0,88265.0,0.01132951]
[1766287218062,0.00568,88266.0,88264.0,0.06797748]
[1766287218063,0.00568,88266.0,88264.0,0.01132964]
[1766287218273,0.04084205,88286.0,88272.0,0.01132862]
[1766287218486,0.00568,88284.0,88272.0,0.01132862]
[1766287218906,0.00568,88284.0,88274.0,0.01132836]
[1766287219308,0.00568,88284.0,88275.0,0.01132823]
[1766287219518,0.00568,88284.0,88271.0,0.00568]
[1766287219724,0.01930386,88284.0,88271.0,0.00568]
[1766287220362,0.12564,88282.0,88271.0,0.00568]
[1766287220573,0.12564,88282.0,88271.0,0.01700874]
[1766287220785,0.12564,88282.0,88271.0,0.00568]
[1766287220991,0.00568,88284.0,88261.0,0.01133003]
[1766287220992,0.000549,88271.0,88261.0,0.01133003]
[1766287221216,0.000549,88271.0,88263.0,0.01132977]
[1766287221423,0.000549,88271.0,88262.0,0.06797942]
[1766287221424,0.25157,88272.0,88262.0,0.0170099]
[1766287221633,0.01362386,88275.0,88262.0,0.0170099]
[1766287221634,0.12564,88269.0,88262.0,0.0170099]
[1766287221837,0.12564,88269.0,88262.0,0.00568]
[1766287222737,0.12564,88269.0,88261.0,6.097e-05]
[1766287222955,0.25157,88266.0,88261.0,9.7e-07]
[1766287223173,0.12564,88264.0,88261.0,9.7e-07]
[1766287226338,0.00024705,88269.0,88261.0,9.7e-07]
[1766287227575,0.13096705,88269.0,88261.0,9.7e-07]
[1766287228174,0.13072,88268.0,88261.0,9.7e-07]
[1766287233242,0.24538,88267.0,88261.0,9.7e-07]
[1766287233450,0.01362386,88266.0,88261.0,9.7e-07]
[1766287233649,0.01362386,88266.0,88245.0,0.01133208]
[1766287233650,0.24538,88262.0,88245.0,0.01133208]
[1766287233889,0.24538,88259.0,88246.0,0.00568]
[1766287234105,0.01133054,88257.0,88241.0,0.0406449]
[1766287234259,0.24538,88258.0,88242.0,0.00568]
[1766287234471,0.24538,88258.0,88242.0,0.01701247]
[1766287234657,0.24538,88258.0,88242.0,0.07367481]
[1766287235103,0.24538,88258.0,88242.0,0.00568]
[1766287235271,0.24538,88258.0,88243.0,0.01133234]
[1766287235272,0.36716,88258.0,88243.0,0.01133234]
[1766287235473,0.12178,88254.0,88244.0,0.00568]
[1766287235721,0.12178,88254.0,88244.0,0.01701221]
[1766287235926,0.12178,88254.0,88245.0,0.01133208]
[1766287236128,0.12178,88254.0,88246.0,0.01133195]
[1766287236329,0.26204,88255.0,88244.0,0.00568]
[1766287236556,0.26204,88255.0,88244.0,0.01701221]
[1766287236737,0.26204,88255.0,88245.0,0.01133208]
[1766287237293,0.26204,88255.0,88244.0,0.00568]
[1766287237493,0.26204,88255.0,88244.0,0.01701221]
[1766287237693,0.26204,88255.0,88245.0,0.01133208]
[1766287238097,0.26198,88255.0,88248.0,0.0113317]
[1766287238303,0.26198,88255.0,88245.0,0.06799236]
[1766287238304,0.26198,88255.0,88251.0,0.08181028]
[1766287239896,0.26198,88255.0,88251.0,0.07613125]
[1766287247721,0.26198,88255.0,88251.0,0.07558225]
[1766287250245,0.12746,88258.0,88251.0,0.07558225]
[1766287251059,0.12746,88258.0,88251.0,0.08691356]
[1766287251313,0.12746,88258.0,88245.0,0.01133208]
[1766287251518,0.12178,88256.0,88245.0,0.01133208]
[1766287251729,0.12178,88256.0,88248.0,0.0113317]
[1766287251936,0.12178,88256.0,88245.0,0.01133208]
[1766287252147,0.26204,88254.0,88242.0,0.01133247]
[1766287252351,0.12178,88251.0,88246.0,0.00513]
[1766287256917,0.38382,88251.0,88246.0,0.00513]
[1766287257121,0.12178,88250.0,88246.0,0.00513]
[1766287258483,0.12178,88250.0,88241.0,0.0113326]
[1766287258702,0.12178,88250.0,88243.0,0.00568]
[1766287259862,0.12178,88244.0,88232.0,0.0406449]
[1766287260075,0.12178,88238.0,88226.0,0.01133272]
[1766287260282,0.12178,88236.0,88229.0,0.00568]
[1766287260703,0.12178,88234.0,88223.0,0.12245518]
[1766287260921,0.33057909,88233.0,88224.0,0.00568]
[1766287261153,0.01362386,88232.0,88222.0,0.00568]
[1766287261369,0.31695523,88232.0,88222.0,0.00568]
[1766287261629,0.03060768,88253.0,88223.0,0.08181028]
[1766287261860,0.12746,88254.0,88245.0,0.08181028]
[1766287262069,0.12746,88254.0,88245.0,0.14980229]
[1766287262271,0.12746,88254.0,88245.0,0.08181028]
[1766287262917,0.26204,88253.0,88240.0,0.01133272]
[1766287263101,0.31695523,88250.0,88241.0,0.08181028]
[1766287263385,0.12178,88249.0,88241.0,0.08181028]
[1766287263799,0.12178,88249.0,88242.0,0.01133247]
[1766287264007,0.12178,88249.0,88241.0,0.08181028]
[1766287266704,0.12178,88249.0,88243.0,0.01133234]
[1766287266957,0.26204,88250.0,88244.0,0.01133221]
[1766287267185,0.26204,88250.0,88243.0,0.01133234]
[1766287268306,0.26204,88250.0,88241.0,0.14980575]
[1766287268307,0.26204,88250.0,88241.0,0.08181028]
[1766287268502,0.26204,88250.0,88241.0,0.09314288]
[1766287268702,0.12409,88249.0,88238.0,0.00568]
[1766287268865,0.12409,88249.0,88240.0,0.08181028]
[1766287269339,0.12977,88249.0,88240.0,0.08181028]
[1766287270445,0.37233,88248.0,88240.0,0.08181028]
[1766287270876,0.12409,88247.0,88240.0,0.08181028]
[1766287271046,0.12409,88247.0,88240.0,0.093143]
[1766287271223,0.12409,88247.0,88240.0,0.08181028]
[1766287273961,0.37233,88247.0,88238.0,0.01701298]
[1766287274173,0.12409,88246.0,88239.0,0.01133285]
[1766287274338,0.12409,88246.0,88238.0,0.01701298]
[1766287275409,0.124639,88238.0,88234.0,0.00568]
[1766287275553,0.124639,88238.0,88234.0,0.01133349]
[1766287275753,0.12409,88238.0,88232.0,0.00568]
[1766287276165,0.12409,88237.0,88232.0,0.00568]
[1766287277888,0.24824,88237.0,88232.0,0.00568]
[1766287278107,0.12409,88236.0,88232.0,0.00568]
[1766287285594,0.24824,88237.0,88236.0,0.00055]
[1766287285800,0.24824,88237.0,88232.0,0.00568]
[1766287286430,0.24824,88237.0,88232.0,0.01701375]
[1766287286634,0.24824,88237.0,88232.0,0.00568]
[1766287286875,0.24824,88237.0,88232.0,0.01701375]
[1766287287027,0.12644,88240.0,88232.0,0.01701375]
[1766287287431,0.12644,88240.0,88232.0,0.00568]
[1766287288068,0.12644,88240.0,88232.0,0.01701375]
[1766287289303,0.12644,88240.0,88232.0,0.00568]
[1766287289709,0.12644,88240.0,88232.0,0.01701375]
[1766287290112,0.12644,88240.0,88232.0,0.00568]
[1766287290931,0.12644,88240.0,88232.0,0.01701375]
[1766287291409,0.12644,88240.0,88232.0,0.00568]
[1766287292007,0.12644,88240.0,88232.0,0.01701375]
[1766287292825,0.12644,88240.0,88232.0,0.00568]
[1766287295590,0.12644,88240.0,88232.0,0.01701375]
[1766287295988,0.12644,88240.0,88232.0,0.00568]
[1766287296216,0.12644,88240.0,88233.0,0.01133362]
[1766287296418,0.12644,88240.0,88232.0,0.01701375]
[1766287296996,0.12644,88240.0,88233.0,0.01133362]
[1766287297974,0.12644,88240.0,88232.0,0.00568]
[1766287298354,0.12644,88240.0,88232.0,0.01701375]
[1766287299185,0.12644,88240.0,88232.0,0.00568]
[1766287299595,0.12644,88240.0,88232.0,0.01701375]
[1766287301541,0.12644,88240.0,88232.0,0.00568]
[1766287302465,0.12644,88240.0,88232.0,0.01701375]
[1766287302900,0.12644,88240.0,88232.0,0.00568]
[1766287304136,0.31703298,88242.0,88232.0,0.00568]
[1766287305347,0.44726298,88242.0,88232.0,0.00568]
[1766287306244,0.31703298,88242.0,88232.0,0.00568]
[1766287306695,0.13023,88240.0,88232.0,0.00568]
[1766287314841,0.13023,88240.0,88232.0,0.01701375]
[1766287315544,0.13023,88240.0,88232.0,0.00568]
[1766287316280,0.13023,88240.0,88232.0,0.01701375]
[1766287318234,0.13023,88240.0,88232.0,0.00568]
[1766287318700,0.13023,88239.0,88232.0,0.00568]
[1766287321255,0.38474,88239.0,88232.0,0.00568]
[1766287321456,0.13023,88238.0,88232.0,0.00568]
[1766287322168,0.13023,88238.0,88228.0,0.01133414]
[1766287322169,0.25451,88237.0,88228.0,0.01133414]
[1766287322377,0.00568,88238.0,88223.0,0.00035938]
[1766287322378,0.38474,88228.0,88223.0,0.00035938]
[1766287322578,0.38474,88227.0,88215.0,0.00568]
[1766287322749,0.31703948,88225.0,88215.0,0.00568]
[1766287322958,0.01133452,88226.0,88215.0,0.00568]
[1766287323169,0.25451,88224.0,88215.0,0.00568]
[1766287323371,0.13023,88221.0,88215.0,0.00568]
[1766287323516,0.129681,88221.0,88215.0,0.00568]
[1766287325998,0.129681,88221.0,88215.0,0.01701594]
[1766287326704,0.129681,88221.0,88216.0,0.01133581]
[1766287327174,0.00035865,88227.0,88221.0,0.01133516]
[1766287327374,0.00035865,88227.0,88223.0,0.01133491]
[1766287327559,0.00035865,88227.0,88221.0,0.01133516]
[1766287328457,0.00035865,88227.0,88224.0,0.01133478]
[1766287328782,0.00035865,88227.0,88221.0,0.01133516]
[1766287328979,0.00035865,88227.0,88222.0,0.01133504]
[1766287329377,0.00035865,88227.0,88221.0,0.01133516]
[1766287329593,0.00035865,88227.0,88220.0,0.01133529]
[1766287329835,0.00035865,88227.0,88221.0,0.01133516]
[1766287330263,0.00035865,88227.0,88224.0,0.01133478]
[1766287330439,0.00568,88226.0,88224.0,0.01133478]
[1766287330649,0.00568,88229.0,88225.0,0.01133465]
[1766287330992,0.00568,88229.0,88225.0,0.00010752]
[1766287331817,0.00568,88229.0,88224.0,0.0080623]
[1766287331947,0.00578754,88229.0,88225.0,0.01133465]
[1766287332484,0.00578754,88229.0,88223.0,0.01133491]
[1766287332681,0.00578754,88229.0,88224.0,0.01133478]
[1766287332896,0.00010754,88229.0,88224.0,0.01133478]
[1766287333678,0.00010754,88229.0,88223.0,0.01133491]
[1766287333887,0.00010754,88229.0,88222.0,0.01133504]
[1766287334291,0.00010754,88229.0,88223.0,0.01133491]
[1766287334504,0.00010754,88229.0,88224.0,0.01133478]
[1766287335113,0.00010754,88229.0,88225.0,0.01133465]
[1766287335409,0.00010754,88229.0,88226.0,0.01133452]
[1766287337058,0.00010754,88229.0,88225.0,0.01133465]
[1766287337871,0.00010754,88229.0,88224.0,0.01133478]
[1766287338078,0.00010754,88229.0,88223.0,0.01133491]
[1766287338287,0.00010754,88229.0,88224.0,0.06800868]
[1766287338485,0.00010754,88229.0,88224.0,0.01133478]
[1766287339434,0.00010754,88229.0,88218.0,0.01133555]
[1766287339565,0.00010754,88229.0,88222.0,0.01133504]
[1766287340547,0.00010754,88229.0,88223.0,0.01133491]
[1766287340777,0.00010754,88229.0,88224.0,0.01133478]
[1766287340927,0.00010754,88229.0,88226.0,0.01133452]
[1766287342695,0.2520913,88232.0,88226.0,0.06800653]
[1766287342907,0.00568,88234.0,88228.0,0.01133427]
[1766287343082,0.00568,88234.0,88230.0,0.01133401]
[1766287343311,0.00568,88234.0,88229.0,0.01133414]
[1766287343514,0.00568,88234.0,88228.0,0.01133427]
[1766287343719,0.00568,88234.0,88229.0,0.01133414]
[1766287344023,0.00568,88234.0,88228.0,0.01133427]
[1766287345138,0.00568,88234.0,88229.0,0.01133414]
[1766287345349,0.00568,88234.0,88230.0,0.01133401]
[1766287345482,0.00568,88234.0,88229.0,0.01133414]
[1766287345683,0.00568,88234.0,88228.0,0.06800499]
[1766287345884,0.00568,88234.0,88229.0,0.01133414]
[1766287346915,0.00568,88234.0,88228.0,0.06800499]
[1766287347342,0.00568,88234.0,88228.0,0.01133427]
[1766287347528,0.00568,88234.0,88227.0,0.01133439]
[1766287347835,0.00568,88234.0,88228.0,0.01133427]
[1766287348669,0.00568,88234.0,88227.0,0.01133439]
[1766287348835,0.00568,88234.0,88228.0,0.01133427]
[1766287349101,0.00568,88234.0,88227.0,0.01133439]
[1766287349431,0.00568,88234.0,88228.0,0.01133427]
[1766287349566,0.00568,88234.0,88227.0,0.01133439]
[1766287349770,0.13336,88234.0,88228.0,0.01133427]
[1766287350196,0.13336,88234.0,88227.0,0.01133439]
[1766287352218,0.13336,88234.0,88226.0,0.01133452]
[1766287352602,0.13336,88234.0,88225.0,0.01133465]
[1766287353013,0.13336,88234.0,88224.0,0.01133478]
[1766287353973,0.000549,88224.0,88222.0,0.00568]
[1766287354385,0.13336,88234.0,88222.0,0.00568]
[1766287355989,0.12911,88233.0,88222.0,0.005131]
[1766287362180,0.12707,88233.0,88222.0,0.005131]
[1766287366868,0.12707,88233.0,88222.0,0.01646642]
[1766287367064,0.12707,88233.0,88222.0,0.02780146]
[1766287367943,0.12707,88233.0,88223.0,0.05667456]
[1766287368079,0.12707,88233.0,88223.0,0.01133491]
[1766287368527,0.12707,88233.0,88222.0,0.02780146]